[Event "1000GM Memorial Day NY IM-B 2023"]
[Site "New York"]
[Date "2023.05.26"]
[Round "2.4"]
[White "Barbosa, Oliver"]
[Black "Hebbar, Eshaan"]
[Result "1-0"]
[ECO "D12"]
[WhiteElo "2492"]
[BlackElo "1969"]
[Annotator "TA"]
[PlyCount "69"]
[EventDate "2023.05.23"]
[EventType "schev"]
[EventCountry "USA"]
[SourceTitle "playchess.com"]
[Source "ChessBase"]
[SourceQuality "1"]
[TimeControl "5400+30"]

{[%evp 13,69,34,45,45,41,39,37,18,34,34,28,28,35,23,40,45,55,43,105,77,236,184,189,195,185,162,181,133,144,127,124,9,12,0,0,-33,-38,-94,75,60,82,0,141,136,776,660,567,208,828,821,814,807,807,800,654,432,1282,1182]} 1. Nf3 {[%emt 0:00:30]} d5 {[%emt 0:00:30]} 2. d4 {[%emt 0:00:30]} Nf6 {[%emt 0:00:30]} 3. c4 {[%emt 0:00:30]} c6 {[%emt 0:00:30]} 4. e3 {[%emt 0:00:30]} Bf5 {[%emt 0:00:30]} 5. Nc3 {[%emt 0:00:30]} e6 {[%emt 0:00:30]} 6. Nh4 {[%emt 0:00:30]} Bg4 {[%emt 0:00:30]} 7. Qb3 {[%emt 0:00:30]} Qc7 {[%emt 0:00:30]} 8. h3 {[%emt 0:00:30] D12: Slav Defence: 3 Nf3 Nf6 4 e3 Bf5.} Bh5 {[%emt 0:00:30]} 9. Bd2 {[%emt 0:00:30]} Nbd7 {[%emt 0:00:30]} 10. Rc1 {[%emt 0:00:30] Strongly threatening cxd5. White is slightly better.} Qb6 {[%emt 0:00:30] [#]} 11. Qc2 $146 {[%emt 0:00:30]} ({Predecessor:} 11. g4 Bg6 12. Nxg6 hxg6 13. Bg2 Qa6 14. Bf1 dxc4 15. Bxc4 Qb6 16. Ke2 Be7 17. a3 {1-0 Donchenko,A (2411)-Pak,A (2129) Wch U14 Maribor 2012 (10.9)}) 11... g5 {[%emt 0:00:30]} 12. Nf3 {[%emt 0:00:30]} Bg6 {[%emt 0:00:30]} 13. Bd3 {[%emt 0:00:30]} Bxd3 {[%emt 0:00:30]} 14. Qxd3 {[%emt 0:00:30]} h6 {[%emt 0:00:30]} 15. cxd5 {[%emt 0:00:30]} exd5 {[%emt 0:00:30]} (15... cxd5 $14 16. Na4 Qd8) 16. Qf5 {[%emt 0:00:30]} Qxb2 $2 {[%emt 0:00:30]} (16... Bb4 $16) 17. e4 {[%emt 0:00:30]} (17. Rb1 $6 Qa3 $16) 17... Bb4 {[%emt 0:00:30] And now ...Bxc3 would win.} 18. O-O {[%emt 0:00:30]} Bxc3 {[%emt 0:00:30]} 19. Bxc3 {[%emt 0:00:30]} Qa3 {[%emt 0:00:30]} 20. exd5 {[%emt 0:00:30]} (20. Nd2 $18) 20... Nxd5 $16 {[%emt 0:00:30]} 21. Rfe1+ {[%emt 0:00:30]} Kd8 {[%emt 0:00:30]} 22. Ne5 {[%emt 0:00:30]} (22. Bd2 $16) 22... Nxe5 $11 {[%emt 0:00:30]} 23. Qxe5 {[%emt 0:00:30]} f6 $1 {[%emt 0:00:30]} 24. Qe6 {[%emt 0:00:30]} Nxc3 {[%emt 0:00:30]} 25. d5 {[%emt 0:00:30]} (25. Qxf6+ $15 Kc7 26. Qe5+ Kb6 27. Qc5+ Qxc5 28. dxc5+ Kc7 29. Rxc3) 25... Kc7 $2 {[%emt 0:00:30]} (25... cxd5 $2 26. Qxf6+ Kd7 27. Rxc3 $18 (27. Qxc3 Qxc3 28. Rxc3 Rac8 $17)) (25... Nxd5 $17 {...Qe7 is the strong threat.} 26. Red1 Qe7 27. Rxc6 Qxe6 {[%mdl 64] Remove Defender} 28. Rxe6 Kd7) 26. dxc6 {[%emt 0:00:30]} (26. Qxf6 Rhe8 27. d6+ Qxd6 28. Qg7+ (28. Qxc3 Rad8 $17) 28... Qd7 29. Qxc3 Rxe1+ 30. Rxe1 Rd8 $17) 26... bxc6 {[%emt 0:00:30] [#] Hoping for ...Rhe8.} 27. Rc2 {[%emt 0:00:30]} ({White should try} 27. Qf7+ $1 $16 Kb6 28. Rb1+ Nb5 29. Rxb5+ {[%mdl 64] Deflection} Kxb5 30. Qb7+ Ka5 31. Qc7+ Kb4 32. Rb1+ Kc3 33. Qxc6+ Kd2 34. Qd5+ Qd3 35. Rd1+ {[%mdl 64] Skewer, Deflection} Kxd1 36. Qxd3+ Kc1 37. a4) 27... Rhd8 {[%emt 0:00:30] [#]} (27... Rhf8 $1 $11 {keeps the balance.} 28. Qc4 Rae8) 28. Qc4 $1 $40 {[%emt 0:00:30][%mdl 128] White wants a kill.} ({Not} 28. Qxf6 Rd3 $11) 28... Qa5 {[%emt 0:00:30][%mdl 8192]} (28... Rd5 $16) 29. Rxc3 {[%emt 0:00:30]} Qd5 {[%emt 0:00:30]} 30. Qa6 {[%emt 0:00:30]} (30. Re7+ Kd6 31. Qe2) 30... Rd7 $2 {[%emt 0:00:30]} (30... Rab8 31. Qxa7+ Rb7) 31. Rec1 $18 {[%emt 0:00:30][%cal Rc3c6] White is clearly winning.} Rd6 {[%emt 0:00:30]} 32. Rb3 {[%emt 0:00:30] Qb7+ would kill now.} c5 {[%emt 0:00:30]} 33. Qa5+ {[%emt 0:00:30]} Kd7 {[%emt 0:00:30]} 34. Rxc5 {[%emt 0:00:30]} Qe4 {[%emt 0:00:30]} (34... Qd1+ $142 35. Kh2 Ke8 36. Qa4+ Rd7 37. Qe4+ Kf7 38. Qh7+ (38. Qxa8 Qd6+ 39. g3 Qxc5 $11) 38... Kf8 39. Qxh6+ Kg8) 35. Qc7+ {[%emt 0:00:30] Weighted Error Value: White=0.54/Black=0.37} 1-0

[Event "1000GM Memorial Day NY IM-B 2023"]
[Site "New York"]
[Date "2023.05.26"]
[Round "2.5"]
[White "Nakada, Akira"]
[Black "Nagy, Gabor"]
[Result "1/2-1/2"]
[ECO "A17"]
[WhiteElo "2321"]
[BlackElo "2468"]
[Annotator "TA"]
[PlyCount "61"]
[EventDate "2023.05.23"]
[EventType "schev"]
[EventCountry "USA"]
[SourceTitle "playchess.com"]
[Source "ChessBase"]
[SourceQuality "1"]
[TimeControl "5400+30"]

{[%evp 9,61,0,0,0,5,0,0,0,0,0,22,22,29,0,21,21,21,12,35,43,45,38,37,40,41,41,42,41,43,-13,-11,-12,-7,-34,0,0,0,0,0,0,0,0,0,0,0,0,0,0,0,0,0,0,0,0]} 1. c4 {[%emt 0:00:30]} e6 {[%emt 0:00:30]} 2. Nc3 {[%emt 0:00:30]} d5 {[%emt 0:00:30]} 3. e3 {[%emt 0:00:30]} Nf6 {[%emt 0:00:30]} 4. Nf3 {[%emt 0:00:30]} Bd6 {[%emt 0:00:30]} 5. b3 {[%emt 0:00:30]} O-O {[%emt 0:00:30]} 6. Bb2 {[%emt 0:00:30] A17: English Opening: 1...Nf6 with ...Bb4.} Re8 {[%emt 0:00:30]} 7. d4 {[%emt 0:00:30]} b6 {[%emt 0:00:30]} 8. Bd3 {[%emt 0:00:30]} Bb7 {[%emt 0:00:30]} 9. O-O {[%emt 0:00:30]} a6 {[%emt 0:00:30]} 10. Qc2 {[%emt 0:00:30]} Nbd7 {[%emt 0:00:30]} 11. Rfd1 {[%emt 0:00:30]} (11. e4 $5 {[%cal Re4e5]}) 11... Qe7 {[%emt 0:00:30]} 12. e4 {[%emt 0:00:30] [#]} dxe4 $146 {[%emt 0:00:30]} ({Predecessor:} 12... dxc4 13. bxc4 e5 14. Nd5 Nxd5 15. cxd5 exd4 16. Nxd4 Be5 17. Rac1 Qf6 18. Bf1 Nc5 {1-0 Pardo Simon,D (2468)-Lopez Martinez,J (2540) Badalona op 41st 2015 (9)}) 13. Nxe4 {[%emt 0:00:30]} Ba3 {[%emt 0:00:30]} 14. Bxa3 {[%emt 0:00:30]} Qxa3 {[%emt 0:00:30]} 15. Ne5 {[%emt 0:00:30]} Bxe4 {[%emt 0:00:30]} 16. Nxd7 {[%emt 0:00:30]} Bg6 {[%emt 0:00:30]} 17. Nxf6+ {[%emt 0:00:30]} gxf6 {[%emt 0:00:30]} 18. Qd2 {[%emt 0:00:30]} Rad8 {[%emt 0:00:30]} 19. Bxg6 {[%emt 0:00:30]} ({Better is} 19. Be2 $14) 19... hxg6 $11 {[%emt 0:00:30]} 20. Qf4 {[%emt 0:00:30]} Qe7 {[%emt 0:00:30]} 21. Re1 {[%emt 0:00:30]} Qd6 {[%emt 0:00:30]} 22. Qxf6 {[%emt 0:00:30] The position is equal.} Qxd4 {[%emt 0:00:30]} 23. Qf3 {[%emt 0:00:30]} a5 {[%emt 0:00:30]} 24. Rad1 {[%emt 0:00:30]} Qb2 {[%emt 0:00:30]} 25. h4 {[%emt 0:00:30]} Qxa2 {[%emt 0:00:30]} 26. h5 {[%emt 0:00:30]} Rxd1 {[%emt 0:00:30]} 27. Rxd1 {[%emt 0:00:30]} Qc2 {[%emt 0:00:30]} 28. hxg6 {[%emt 0:00:30]} fxg6 {[%emt 0:00:30]} ({Resist} 28... Qxg6 29. Qc6 Kf8 30. Qxc7 $14) 29. Rd7 {[%emt 0:00:30] [#] Qf7+ would kill now.} Qc1+ {[%emt 0:00:30]} 30. Rd1 {[%emt 0:00:30]} Qc2 {[%emt 0:00:30] White must now prevent ...Rf8.} 31. Rd7 {[%emt 0:00:30] Weighted Error Value: White=0.06 (flawless) /Black=0.04 (flawless)} 1/2-1/2

[Event "1000GM Memorial Day NY IM-B 2023"]
[Site "New York"]
[Date "2023.05.26"]
[Round "2.6"]
[White "Bortnyk, Mykola"]
[Black "Espinosa, Pedro"]
[Result "1-0"]
[ECO "D12"]
[WhiteElo "2425"]
[BlackElo "2229"]
[Annotator "TA"]
[PlyCount "69"]
[EventDate "2023.05.23"]
[EventType "schev"]
[EventCountry "USA"]
[SourceTitle "playchess.com"]
[Source "ChessBase"]
[SourceQuality "1"]
[TimeControl "5400+30"]

{[%evp 13,69,35,36,28,29,38,36,22,28,10,35,49,34,38,50,41,56,54,107,84,221,164,185,176,180,188,184,137,110,102,113,15,16,0,0,-50,-43,-98,63,68,62,0,123,119,771,681,600,236,733,725,725,714,714,714,637,443,1009,943]} 1. Nf3 {[%emt 0:00:08]} d5 {[%emt 0:00:12]} 2. d4 {[%emt 0:00:10]} Nf6 {[%emt 0:00:13]} 3. c4 {[%emt 0:00:06]} c6 {[%emt 0:00:09]} 4. e3 {[%emt 0:00:06]} Bf5 {[%emt 0:00:26]} 5. Nc3 {[%emt 0:00:06]} e6 {[%emt 0:00:21]} 6. Nh4 {[%emt 0:00:15]} Bg4 {[%emt 0:01:21]} 7. Qb3 {[%emt 0:00:27]} Qc7 {[%emt 0:02:29]} 8. h3 {[%emt 0:00:33] D12: Slav Defence: 3 Nf3 Nf6 4 e3 Bf5.} Bh5 {[%emt 0:00:26]} 9. Bd2 {[%emt 0:05:09]} Nbd7 {[%emt 0:08:48]} 10. Rc1 {[%emt 0:08:42] aiming for cxd5. White is slightly better.} Qb6 {[%emt 0:01:53] [#]} 11. Qc2 $146 {[%emt 0:01:13]} ({Predecessor:} 11. g4 Bg6 12. Nxg6 hxg6 13. Bg2 Qa6 14. Bf1 dxc4 15. Bxc4 Qb6 16. Ke2 Be7 17. a3 {1-0 Donchenko,A (2411)-Pak,A (2129) Wch U14 Maribor 2012 (10.9)}) 11... g5 {[%emt 0:26:27]} 12. Nf3 {[%emt 0:09:37]} Bg6 {[%emt 0:00:15]} 13. Bd3 {[%emt 0:01:06]} Bxd3 {[%emt 0:01:08]} 14. Qxd3 {[%emt 0:01:17]} h6 {[%emt 0:00:05]} 15. cxd5 {[%emt 0:01:24]} exd5 {[%emt 0:00:16]} (15... cxd5 $14 16. Na4 Qd8) 16. Qf5 {[%emt 0:02:06]} Qxb2 {[%emt 0:10:37]} (16... Bg7 $16) 17. e4 {[%emt 0:17:19]} (17. Rb1 $6 Qa3 $16) 17... Bb4 {[%emt 0:06:12] [#] Strongly threatening ...Bxc3.} 18. O-O {[%emt 0:08:10]} Bxc3 {[%emt 0:16:11]} 19. Bxc3 {[%emt 0:00:25]} Qa3 {[%emt 0:10:10]} 20. exd5 {[%emt 0:01:18]} (20. Ne5 $18 Qd6 21. Rce1) 20... Nxd5 $16 {[%emt 0:00:10]} 21. Rfe1+ {[%emt 0:13:55]} Kd8 {[%emt 0:00:16]} 22. Ne5 {[%emt 0:05:58]} (22. Rb1 $16 Qxc3 23. Ne5 (23. Rb3 Qc4 $11)) 22... Nxe5 $11 {[%emt 0:00:11]} 23. Qxe5 {[%emt 0:00:11]} (23. dxe5 $5 {[%cal Re5e6]} Nxc3 24. Qd3+ (24. Qxf7 Qe7 $11) 24... Kc7 25. Rxc3 $11) 23... f6 $1 {[%emt 0:00:12]} 24. Qe6 {[%emt 0:06:09]} (24. Ba5+ $11 Qxa5 25. Qd6+ Kc8 26. Rxc6+ bxc6 27. Qxc6+ Kb8 28. Rb1+ Qb6 29. Rxb6+ Nxb6 30. Qxf6) 24... Nxc3 $15 {[%emt 0:07:14]} 25. d5 {[%emt 0:09:17]} (25. Qxf6+ $15 Kc7 26. Qe5+ Kb6 27. Qc5+ Qxc5 28. dxc5+ Kc7 29. Rxc3) 25... Kc7 $2 {[%emt 0:06:35]} (25... cxd5 $2 26. Qxf6+ Kd7 27. Rxc3 $18 (27. Qxc3 Qxc3 28. Rxc3 Rac8 $17)) ({Black should try} 25... Nxd5 $17 {And now ...Qe7 would win.} 26. Red1 Qe7 27. Rxc6 Qxe6 {[%mdl 64] Remove Defender} 28. Rxe6 Kd7) 26. dxc6 {[%emt 0:01:58]} (26. Qxf6 Rhe8 27. d6+ Qxd6 28. Qg7+ (28. Qxc3 Rad8 $17) 28... Qd7 29. Qxc3 Rxe1+ 30. Qxe1 Re8 31. Qa5+ Kb8 $17) 26... bxc6 {[%emt 0:00:02] Threatens to win with ...Rae8.} 27. Rc2 {[%emt 0:01:26]} (27. Qf7+ $1 $14 Kb6 28. Rb1+ Nb5 29. Rxb5+ {[%mdl 64] Deflection} Kxb5 30. Qb7+ Ka5 31. Qc7+ Kb4 32. Rb1+ Kc3 33. Qxc6+ Kd2 34. Qd5+ Qd3 35. Rd1+ {[%mdl 64] Deflection} Kxd1 36. Qxd3+ Kc1 37. Qc3+ Kb1 38. Qxf6) 27... Rhd8 {[%emt 0:00:50] [#]} (27... Rhf8 $1 $11 28. Qc4 Rae8) 28. Qc4 $1 $16 {[%emt 0:01:08]} (28. Qxf6 $6 Rd3 $11) 28... Qa5 {[%emt 0:00:47][%mdl 8192]} 29. Rxc3 {[%emt 0:00:16]} Qd5 {[%emt 0:00:19]} 30. Qa6 {[%emt 0:00:47]} (30. Re7+ Kd6 31. Qe2) 30... Rd7 $2 {[%emt 0:00:41]} (30... Rab8 31. Qxa7+ Rb7) 31. Rec1 $18 {[%emt 0:00:40][%cal Rc3c6] White is clearly winning.} Rd6 {[%emt 0:00:08]} 32. Rb3 {[%emt 0:01:10] Qb7+ would be deadly.} c5 {[%emt 0:00:53]} 33. Qa5+ {[%emt 0:00:30]} Kd7 {[%emt 0:00:06]} 34. Rxc5 {[%emt 0:00:13]} Qe4 {[%emt 0:00:21]} (34... Qd1+ $142 35. Kh2 Ke8 36. Qa4+ Rd7 37. Qe4+ Kf7 38. Qh7+ (38. Qxa8 Qd6+ 39. g3 Qxc5 $11) 38... Kf8 39. Qh8+ Kf7 40. Qh7+ (40. Qxa8 Qd6+ 41. g3 Qxc5 $11) 40... Kf8 41. Qh8+ Kf7 42. Qh7+ (42. Qxa8 Qd6+ 43. g3 Qxc5 $11)) 35. Qc7+ {[%emt 0:00:10] Weighted Error Value: White=0.51/Black=0.35} 1-0

[Event "1000GM Memorial Day NY IM-B 2023"]
[Site "New York"]
[Date "2023.05.27"]
[Round "3.1"]
[White "Hebbar, Eshaan"]
[Black "Lee, Alice"]
[Result "0-1"]
[ECO "E14"]
[WhiteElo "1969"]
[BlackElo "2391"]
[Annotator "TA"]
[PlyCount "82"]
[EventDate "2023.05.23"]
[EventType "schev"]
[EventCountry "USA"]
[SourceTitle "playchess.com"]
[Source "ChessBase"]
[SourceQuality "1"]
[TimeControl "5400+30"]

{[%evp 21,82,5,12,0,33,38,55,0,10,10,16,8,18,11,12,0,274,273,267,261,198,0,0,0,0,0,0,-131,-142,-143,-137,-143,-141,-231,-198,-242,-242,-242,-219,-242,-205,-244,-223,-287,-294,-357,-301,-783,-783,-920,-766,-2059,-2200,-1870,-1339,-5302,-2521,-29970,-29971,-29976,-29977,-29986,-29987]} 1. d4 {[%emt 0:00:04]} d5 {[%emt 0:00:03]} 2. c4 {[%emt 0:00:09]} c6 {[%emt 0:00:03]} 3. Nc3 {[%emt 0:00:08]} Nf6 {[%emt 0:00:02]} 4. e3 {[%emt 0:00:10]} e6 {[%emt 0:00:05]} 5. Nf3 {[%emt 0:00:06]} Nbd7 {[%emt 0:00:09]} 6. Qc2 {[%emt 0:00:11]} b6 {[%emt 0:01:14]} 7. cxd5 {[%emt 0:01:05]} exd5 {[%emt 0:00:44]} 8. Bd3 {[%emt 0:00:33]} Bb7 {[%emt 0:01:53]} 9. O-O {[%emt 0:02:01]} Be7 {[%emt 0:02:39]} 10. e4 {[%emt 0:10:10]} dxe4 {[%emt 0:00:12]} 11. Nxe4 {[%emt 0:00:07]} O-O {[%emt 0:08:22]} 12. Ne5 {[%emt 0:03:35] E14: Queen's Indian: Classical Variation (4 e3).} Nxe5 {[%emt 0:14:50]} 13. dxe5 {[%emt 0:00:18]} Nd5 {[%emt 0:01:43] aiming for ...Nb4.} 14. Qe2 {[%emt 0:04:09]} (14. Bd2 $14) 14... Nb4 {[%emt 0:06:16]} 15. Bc4 {[%emt 0:04:57]} b5 {[%emt 0:04:34]} 16. Bb3 {[%emt 0:01:39]} c5 {[%emt 0:02:40]} 17. Rd1 {[%emt 0:01:08] Prevents c4.} Qc7 {[%emt 0:01:07]} (17... Qc8 {simplifies} 18. a3 c4 19. axb4 Bxe4 20. Qxe4 cxb3 21. Be3 Qc2) 18. e6 {[%emt 0:04:53]} c4 $2 {[%emt 0:14:36][%mdl 8192]} (18... fxe6 $11 19. Bxe6+ Kh8) 19. Rd7 $18 {[%emt 0:02:02]} Qc6 {[%emt 0:00:45] ...Rae8 is the strong threat.} 20. Rxe7 {[%emt 0:03:30] [#]} cxb3 $146 {[%emt 0:00:35] Black is weak on the dark squares} ({Predecessor:} 20... f5 21. Rxb7 Qxb7 22. Nd6 Qe7 23. Nxc4 bxc4 24. Bxc4 Rac8 25. Bg5 Qc5 26. b3 Kh8 27. e7 Rfe8 28. Bf7 h6 29. Bxe8 Nc6 30. Bxc6 {1-0 Giacomini,H (2212)-Lo Presti,R (1987) Buenos Aires Szmetan Giardelli op 2018 (8)}) 21. exf7+ $2 {[%emt 0:08:10]} (21. Qg4 $18 {[%cal Oc1h6] Strongly threatening Bh6!} Kh8 22. Ng5 (22. exf7 $2 Nc2 $19 {[%mdl 64] Deflection})) 21... Rxf7 $11 {[%emt 0:07:13]} 22. Rxf7 {[%emt 0:02:04]} Qxe4 $40 {[%emt 0:00:55][%mdl 128] Black is up to no good.} (22... Kxf7 $5 23. Qf3+ $8 Ke8 24. Qh5+ Kf8 25. Qf3+ Ke8 26. Qh5+ Kf8 27. Qf3+ Ke8 $11) 23. Qxe4 {[%emt 0:05:14]} (23. Qxb5 $2 Qxg2#) 23... Bxe4 {[%emt 0:00:02]} 24. Rc7 {[%emt 0:01:59]} (24. Re7 $11 Nc2 25. Rxe4) 24... Nc2 $17 {[%emt 0:01:17]} (24... Nxa2 $2 25. Be3 $18) ({Much worse is} 24... bxa2 $6 25. Bd2 a5 26. Rc5 $11) 25. Rxc2 {[%emt 0:00:18]} bxc2 {[%emt 0:00:07][%mdl 4096] Endgame KRB-KRB} ({Reject} 25... Bxc2 $6 26. axb3 Bxb3 27. Bd2 $11) 26. f3 {[%emt 0:00:06]} Bg6 {[%emt 0:02:11] Black is more active.} 27. Kf2 {[%emt 0:01:39] [#]} (27. Bf4 $17) 27... Rd8 $1 $19 {[%emt 0:00:26]} 28. Be3 {[%emt 0:00:13][%cal Of2e2]} Rd1 {[%emt 0:00:18]} 29. Rc1 {[%emt 0:00:07]} a5 {[%emt 0:01:13][%cal Ba7a5,Ba5a4,Ba4a3][%mdl 32]} 30. h4 {[%emt 0:01:16]} Kf7 {[%emt 0:02:35]} 31. h5 {[%emt 0:01:17]} Bd3 {[%emt 0:00:10]} ({Less strong is} 31... Bxh5 32. Rxc2 Ke6 33. Rc7 $14) 32. Kg3 {[%emt 0:00:54]} Ke6 {[%emt 0:00:33]} 33. Kf4 {[%emt 0:02:21]} a4 {[%emt 0:00:53]} 34. b3 $2 {[%emt 0:01:44]} (34. Kg3) 34... a3 {[%emt 0:01:57]} 35. g3 {[%emt 0:02:35]} b4 {[%emt 0:00:26] And now ...Kd6 would win.} 36. g4 {[%emt 0:00:10]} Rxc1 {[%emt 0:02:44]} 37. Bxc1 {[%emt 0:00:09] [#]} Bc4 $1 {[%emt 0:00:37][%mdl 576] Promotion} 38. Ke3 {[%emt 0:05:19] [#]} (38. bxc4 b3) 38... Bxb3 $1 {[%emt 0:00:16][%mdl 576] Promotion} 39. Kd3 {[%emt 0:00:05]} (39. f4 Bxa2) 39... Bxa2 {[%emt 0:00:12] Black mates.} 40. f4 {[%emt 0:01:25]} Bb3 {[%emt 0:00:45]} 41. Kd2 {[%emt 0:00:20]} h6 {[%emt 0:01:22] Black used his chance. Excellently played by Lee!   Weighted Error Value: White=0.98/Black=0.18 (very precise)} 0-1

[Event "1000GM Memorial Day NY IM-B 2023"]
[Site "New York"]
[Date "2023.05.27"]
[Round "3.2"]
[White "Ansh M Shah"]
[Black "Nakada, Akira"]
[Result "0-1"]
[ECO "E00"]
[WhiteElo "2171"]
[BlackElo "2321"]
[Annotator "TA"]
[PlyCount "94"]
[EventDate "2023.05.23"]
[EventType "schev"]
[EventCountry "USA"]
[SourceTitle "playchess.com"]
[Source "ChessBase"]
[SourceQuality "1"]
[TimeControl "5400+30"]

{[%evp 12,94,8,11,18,11,18,13,21,14,23,0,0,0,19,0,0,8,21,17,0,-8,0,0,-2,-2,-8,-12,0,-25,-22,-157,-157,-156,-97,-92,-85,-91,-93,-129,-125,-126,-123,-119,-129,-124,-122,-127,-126,-126,-104,-101,-96,-91,-107,-89,-75,-77,-75,-91,-43,-43,-35,-4606,-4602,-4594,-2055,-29973,-29974,-29968,-29970,-29981,-29982,-29982,-29983,-29983,-29984,-29984,-29984,-29984,-29985,-29985,-29986,-29986,-29987]} 1. d4 {[%emt 0:00:02]} Nf6 {[%emt 0:00:05]} 2. c4 {[%emt 0:00:07]} e6 {[%emt 0:00:04]} 3. g3 {[%emt 0:00:08]} Bb4+ {[%emt 0:00:38]} 4. Nd2 {[%emt 0:00:09]} c5 {[%emt 0:00:48]} 5. a3 {[%emt 0:00:16]} Bxd2+ {[%emt 0:00:10]} 6. Qxd2 {[%emt 0:00:23]} cxd4 {[%emt 0:00:11]} 7. Nf3 {[%emt 0:00:19]} d5 {[%emt 0:00:27] E00: Catalan Bogo-Indian (3 g3 Bb4+).} 8. cxd5 {[%emt 0:00:56] 8.Bg2 gains popularity.} e5 {[%emt 0:00:11][%mdl 64] Decoy} 9. Nxe5 {[%emt 0:01:26]} Qxd5 {[%emt 0:00:10] The position is equal.} 10. Nf3 {[%emt 0:00:09]} Nc6 {[%emt 0:00:09]} 11. Bg2 {[%emt 0:00:28]} O-O {[%emt 0:00:08]} 12. O-O {[%emt 0:00:37]} Rd8 {[%emt 0:00:31] [#]} 13. Qg5 $146 {[%emt 0:03:33]} ({Predecessor:} 13. Ne1 Qh5 14. Nd3 h6 15. Nf4 Qe5 16. Nd3 Qe7 17. Re1 Bf5 18. Qd1 Re8 19. Bd2 {0-1 Baeumer,L (2238)-Georgescu,L (2278) SUI-chT Switzerland 2022 (7.4)}) 13... Qe6 {[%emt 0:02:00]} 14. Re1 {[%emt 0:02:49]} Ne4 {[%emt 0:26:38]} 15. Qf4 {[%emt 0:12:06]} h6 {[%emt 0:04:13]} 16. Ne5 {[%emt 0:06:31]} Nc5 {[%emt 0:03:23]} 17. Nxc6 {[%emt 0:01:50]} bxc6 {[%emt 0:00:03]} 18. Bd2 {[%emt 0:06:41]} Nb3 {[%emt 0:00:47] Wards off Rac1. And now ...g5 would win.} 19. Rad1 {[%emt 0:00:46]} Ba6 {[%emt 0:03:00]} 20. Be4 {[%emt 0:07:54]} Rab8 {[%emt 0:07:14]} 21. Qf3 {[%emt 0:09:29]} (21. Bf5 $11 Qe8 22. Bd3 Bxd3 23. exd3) 21... Re8 $1 $17 {[%emt 0:14:10]} 22. Bf4 {[%emt 0:13:52][%cal Bd2f4,Bf4b8,Bb8a7][%mdl 32]} Qxe4 {[%emt 0:01:40]} (22... Rb6 $142 23. Bd3 c5) 23. Qxe4 {[%emt 0:00:37]} (23. Bxb8 $2 {loses.} Qxf3 24. exf3 Rxb8 $19) 23... Rxe4 {[%emt 0:00:01]} 24. Bxb8 {[%emt 0:00:10]} Bxe2 {[%emt 0:00:07]} 25. Bxa7 {[%emt 0:05:34][%cal Od1d4]} c5 {[%emt 0:00:04]} 26. f3 {[%emt 0:06:59]} Re3 {[%emt 0:03:01] Black is more active.} 27. Kf2 {[%emt 0:00:43]} Bxd1 {[%emt 0:01:01]} (27... Bxf3 $2 28. Rxd4 (28. Rxe3 Bxd1 29. Re5 Kh7 $18) 28... cxd4 29. Rxe3 dxe3+ 30. Kxf3 $18) 28. Rxd1 {[%emt 0:01:31]} Re7 {[%emt 0:04:53]} 29. Bxc5 {[%emt 0:03:37][%mdl 64] Deflection} Nxc5 {[%emt 0:00:07]} 30. Rxd4 {[%emt 0:00:08][%mdl 4096] Endgame KRN-KR} Nb3 {[%emt 0:05:07]} 31. Rb4 {[%emt 0:02:19]} Nc1 {[%emt 0:00:49] Strongly threatening ...Nd3+.} 32. Rb8+ {[%emt 0:00:59]} Kh7 {[%emt 0:00:01] White must now prevent ...Nd3+.} 33. f4 {[%emt 0:01:43]} g5 {[%emt 0:14:24]} 34. Kf3 {[%emt 0:01:58]} Nd3 {[%emt 0:01:17]} 35. a4 {[%emt 0:02:37]} f5 {[%emt 0:00:29]} (35... Ne1+ $1 $17 36. Kf2 gxf4 37. gxf4 Re4) 36. fxg5 $15 {[%emt 0:00:35]} hxg5 {[%emt 0:00:05] aiming for ...f4.} 37. h3 $2 {[%emt 0:00:46][%mdl 8192] [#] White does not recover from this.} (37. a5 $15) 37... f4 $1 $19 {[%emt 0:01:17]} 38. gxf4 {[%emt 0:01:14]} gxf4 {[%emt 0:00:01] ( -> ...Re3+)} 39. a5 {[%emt 0:04:00]} Re3+ {[%emt 0:00:20] Black mates.} 40. Kg4 {[%emt 0:00:14] [#]} f3 $1 {[%emt 0:00:46]} 41. a6 {[%emt 0:03:55]} f2 {[%emt 0:00:11]} 42. a7 {[%emt 0:00:42]} f1=Q {[%emt 0:01:33]} 43. Rh8+ {[%emt 0:00:32]} Kg7 {[%emt 0:00:22]} 44. Rg8+ {[%emt 0:00:33]} Kxg8 {[%emt 0:00:43]} 45. a8=Q+ {[%emt 0:01:03]} Qf8 {[%emt 0:00:11]} 46. Qd5+ {[%emt 0:00:00]} Kh7 {[%emt 0:00:25]} 47. Qh5+ {[%emt 0:00:14]} Qh6 {[%emt 0:00:07] Weighted Error Value: White=0.31/Black=0.05 (flawless)} 0-1